fUST/lending_fUST_20240110
["ID","MTS","AMOUNT","RATE_DAILY","PERIOD"]
[311031789,1704877627780,-161.42876466,0.00027177,2]
[311031790,1704877627801,-348.08339068,0.00027177,2]
[311031791,1704877627820,-3931.75997852,0.00027177,2]
[311031792,1704877627845,-2555.07986654,0.00027178,2]
[311031793,1704877633097,-853.57612089,0.00025637,2]
[311031794,1704877633117,-15075.73908911,0.00027178,2]
[311031799,1704877645089,-1821.85168105,0.00022985,2]
[311031800,1704877645112,-200.0,0.00022985,2]
[311031801,1704877645132,-155.9473962,0.00022985,2]
[311031802,1704877645152,-2079.63666476,0.00022985,2]
[311031803,1704877645174,-154.87609912,0.00024459,4]
[311031804,1704877645194,-1195.09669838,0.00025637,2]
[311031805,1704877645215,-326.73090334,0.00027176,2]
[311031806,1704877645235,-733.25771754,0.00027177,2]
[311031807,1704877645256,-3931.75997852,0.00027177,2]
[311031808,1704877645276,-614.01289661,0.00027177,2]
[311031809,1704877645296,-4711.08145103,0.00027177,2]
[311031810,1704877645316,-156.86767994,0.00027177,2]
[311031811,1704877645335,-236.79527182,0.00027177,2]
[311031812,1704877645357,-348.08339068,0.00027177,2]
[311031813,1704877645377,-469.64064105,0.00027177,2]
[311031814,1704877645402,-4917.8600325,0.00027177,2]
[311031815,1704877645422,-525.91402641,0.00027177,2]
[311031816,1704877645443,-2093.08732709,0.00027177,2]
[311031817,1704877645463,-154.87609912,0.00027177,2]
[311031818,1704877645484,-20427.53018434,0.00027178,2]
[311031819,1704877645506,-6040.67689058,0.00027179,2]
[311031820,1704877645526,-26333.98212066,0.00027179,2]
[311031821,1704877645547,-5000.0,0.00027179,2]
[311031822,1704877645568,-960.90730082,0.00027179,2]
[311031823,1704877645591,-4969.58,0.0002729,3]
[311031824,1704877645614,-9098.22062588,0.000273,4]
[311031825,1704877645635,-151.51510611,0.00027332,2]
[311031826,1704877645655,-763.40324942,0.00027387,2]
[311031827,1704877645675,-3313.2630203,0.00027387,2]
[311031828,1704877645696,-184.46633966,0.00027387,2]
[311031829,1704877645716,-10189.91930689,0.00027387,2]
[311031830,1704877645736,-155.38243252,0.00027395,2]
[311031831,1704877645755,-155.56645819,0.00027395,2]
[311031833,1704877645777,-1711.73879249,0.00027395,2]
[311031835,1704877645797,-1000.2331786,0.00027396,2]
[311031836,1704877645818,-500.0,0.00027396,2]
[311031837,1704877645839,-499.10375749,0.00027396,2]
[311031838,1704877645860,-500.0,0.00027396,2]
[311031839,1704877645880,-354.7386738,0.00027396,2]
[311031840,1704877645901,-500.0,0.00027396,2]
[311031841,1704877645921,-642.07963728,0.00027396,2]
[311031842,1704877645942,-500.0,0.00027396,2]
[311031843,1704877645962,-500.0,0.00027396,2]
[311031844,1704877645983,-500.0,0.00027396,2]
[311031845,1704877646004,-500.0,0.00027396,2]
[311031846,1704877646025,-500.0,0.00027396,2]
[311031847,1704877646046,-500.0,0.00027396,2]
[311031848,1704877646067,-500.0,0.00027396,2]
[311031849,1704877646088,-500.0,0.00027396,2]
[311031850,1704877646109,-500.0,0.00027396,2]
[311031851,1704877646129,-500.0,0.00027396,2]
[311031852,1704877646150,-485.5819389,0.00027396,2]
[311031853,1704877646171,-500.0,0.00027396,2]
[311031854,1704877646191,-500.0,0.00027396,2]
[311031855,1704877646212,-500.0,0.00027396,2]
[311031856,1704877646234,-500.0,0.00027396,2]
[311031857,1704877646254,-399.72787304,0.00027396,2]
[311031858,1704877646273,-500.0,0.00027396,2]
[311031859,1704877646293,-500.0,0.00027397,2]
[311031860,1704877646314,-503.4346223,0.00027397,2]
[311031861,1704877646335,-502.52673231,0.00027397,2]
[311031862,1704877646356,-500.0,0.00027397,2]
[311031863,1704877646377,-356.33341781,0.00027397,2]
[311031864,1704877646398,-501.78053641,0.00027397,2]
[311031865,1704877646417,-502.0155958,0.00027397,2]
[311031866,1704877646439,-502.65996338,0.00027397,2]
[311031867,1704877646459,-503.00030109,0.00027397,2]
[311031868,1704877646479,-500.0,0.00027397,2]
[311031869,1704877646499,-501.21999366,0.00027397,2]
[311031870,1704877646519,-502.72683891,0.00027397,2]
[311031871,1704877646539,-500.0,0.00027397,2]
[311031872,1704877646558,-500.0,0.00027397,2]
[311031873,1704877646579,-197.20355951,0.00027397,2]
[311031874,1704877646600,-500.0,0.00027397,2]
[311031875,1704877646620,-503.99026143,0.00027397,2]
[311031876,1704877646642,-500.0,0.00027397,2]
[311031877,1704877646662,-501.00160145,0.00027397,2]
[311031878,1704877646682,-500.0,0.00027397,2]
[311031879,1704877646703,-500.0,0.00027397,2]
[311031880,1704877646723,-500.0,0.00027397,2]
[311031881,1704877646743,-500.0,0.00027397,2]
[311031882,1704877646764,-500.0,0.00027397,2]
[311031883,1704877646785,-1243.86,0.00027397,2]
[311031884,1704877646805,-500.0,0.00027397,2]
[311031885,1704877646826,-500.0,0.00027397,2]
[311031886,1704877646847,-155.0,0.00027397,2]
[311031887,1704877646868,-500.0,0.00027397,2]
[311031888,1704877646889,-500.0,0.00027397,2]
[311031889,1704877646911,-500.0,0.00027397,2]
[311031890,1704877646944,-500.0,0.00027397,2]
[311031891,1704877646965,-500.0,0.00027397,2]
[311031892,1704877646987,-541.85,0.00027397,2]
[311031893,1704877647008,-500.0,0.00027397,2]
[311031894,1704877647030,-2698.61,0.00027397,2]
[311031895,1704877647051,-500.0,0.00027397,2]
[311031896,1704877647073,-500.0,0.00027397,2]
[311031897,1704877647095,-1000.0,0.00027397,2]
[311031898,1704877647117,-500.0,0.00027397,2]
[311031899,1704877647138,-515.0953029,0.00027397,2]
[311031900,1704877647159,-534.63983472,0.00027397,2]
[311031901,1704877647180,-500.0,0.00027397,2]
[311031902,1704877647200,-1017.09,0.00027397,2]
[311031903,1704877647221,-500.0,0.00027397,2]
[311031904,1704877647242,-500.0,0.00027397,2]
[311031905,1704877647264,-500.0,0.00027397,2]
[311031906,1704877647285,-500.0,0.00027397,2]
[311031908,1704877647307,-500.0,0.00027397,2]
[311031909,1704877647328,-500.0,0.00027397,2]
[311031910,1704877647350,-500.0,0.00027397,2]
[311031911,1704877647372,-500.0,0.00027397,2]
[311031912,1704877647394,-500.0,0.00027397,2]
[311031913,1704877647420,-500.0,0.00027397,2]
[311031914,1704877647570,-500.0,0.00027397,2]
[311031915,1704877647592,-500.0,0.00027397,2]
[311031916,1704877647620,-500.0,0.00027397,2]
[311031917,1704877647640,-1483.41,0.00027397,2]
[311031918,1704877647661,-500.0,0.00027397,2]
[311031919,1704877647682,-1204.77,0.00027397,2]
[311031920,1704877647703,-500.0,0.00027397,2]
[311031921,1704877647724,-500.0,0.00027397,2]
[311031922,1704877647746,-2456.65,0.00027397,2]
[311031923,1704877647767,-500.0,0.00027397,2]
[311031924,1704877647788,-500.0,0.00027397,2]
[311031925,1704877647808,-500.0,0.00027397,2]
[311031926,1704877647828,-500.0,0.00027397,2]
[311031927,1704877647849,-1224.62,0.00027397,2]
[311031928,1704877647870,-500.0,0.00027397,2]
[311031929,1704877647890,-500.0,0.00027397,2]
[311031930,1704877647911,-500.0,0.00027397,2]
[311031931,1704877647932,-500.0,0.00027397,2]
[311031932,1704877647953,-500.0,0.00027397,2]
[311031933,1704877647974,-501.3942959,0.00027397,2]
[311031934,1704877647994,-196.90125182,0.00027397,5]
[311031935,1704877648017,-500.0,0.00027397,2]
[311031936,1704877648041,-500.0,0.00027397,2]
[311031937,1704877648063,-500.0,0.00027397,2]
[311031938,1704877648086,-500.0,0.00027397,2]
[311031939,1704877648111,-502.80033517,0.00027397,2]
[311031940,1704877648133,-500.0,0.00027397,2]
[311031941,1704877648155,-500.0,0.00027397,2]
[311031942,1704877648176,-4076.37,0.00027397,2]
[311031943,1704877648197,-500.0,0.00027397,2]
[311031944,1704877648217,-500.0,0.00027397,2]
[311031945,1704877648238,-600.14,0.00027397,2]
[311031946,1704877648259,-504.43357066,0.00027397,2]
[311031947,1704877648279,-500.0,0.00027397,2]
[311031948,1704877648300,-500.0,0.00027397,5]
[311031949,1704877648321,-500.0,0.00027397,2]
[311031950,1704877648343,-1365.79,0.00027397,2]
[311031951,1704877648367,-1012.87,0.00027397,2]
[311031952,1704877648388,-500.0,0.00027397,2]
[311031953,1704877648410,-31747.62,0.00027397,2]
[311031954,1704877648433,-600.0,0.00027397,2]
[311031955,1704877648456,-500.0,0.00027397,2]
[311031956,1704877648480,-564.33525738,0.00027397,2]
[311031957,1704877648502,-500.0,0.00027397,2]
[311031958,1704877648525,-500.0,0.00027397,2]
[311031959,1704877648546,-500.0,0.00027397,2]
[311031960,1704877648566,-500.0,0.00027397,2]
[311031961,1704877648587,-500.0,0.00027397,2]
[311031962,1704877648611,-2023.55,0.00027397,2]
[311031963,1704877648632,-500.0,0.00027397,2]
[311031964,1704877648653,-500.0,0.00027397,2]
[311031965,1704877648674,-500.0,0.00027397,2]
[311031966,1704877648694,-500.0,0.00027397,2]
[311031967,1704877648715,-500.82557575,0.00027397,2]
[311031968,1704877648735,-579.32,0.00027397,2]
[311031969,1704877648756,-579.32,0.00027397,2]
[311031970,1704877648776,-579.32,0.00027397,2]
[311031971,1704877648796,-579.32,0.00027397,2]
[311031972,1704877648817,-500.0,0.00027397,2]
[311031973,1704877648838,-579.32,0.00027397,2]
[311031974,1704877648860,-579.32,0.00027397,2]
[311031975,1704877648880,-579.32,0.00027397,2]
[311031976,1704877648900,-579.32,0.00027397,2]
[311031977,1704877648921,-579.32,0.00027397,2]
[311031978,1704877648940,-579.32,0.00027397,2]
[311031979,1704877648961,-579.32,0.00027397,2]
[311031980,1704877648982,-1415.91,0.00027397,2]
[311031981,1704877649003,-579.32,0.00027397,2]
[311031982,1704877649029,-501.60375425,0.00027397,2]
[311031983,1704877649052,-579.32,0.00027397,2]
[311031984,1704877649075,-579.32,0.00027397,2]
[311031985,1704877649100,-579.32,0.00027397,2]
[311031986,1704877649121,-579.32,0.00027397,2]
[311031987,1704877649142,-579.32,0.00027397,2]
[311031988,1704877649163,-579.32,0.00027397,2]
[311031989,1704877649184,-579.32,0.00027397,2]
[311031990,1704877649205,-579.32,0.00027397,2]
[311031991,1704877649226,-579.32,0.00027397,2]
[311031992,1704877649248,-579.32,0.00027397,2]
[311031993,1704877649269,-579.32,0.00027397,2]
[311031994,1704877649291,-579.45317931,0.00027397,2]
[311031995,1704877649311,-1043.7,0.00027397,2]
[311031996,1704877649332,-1803.46,0.00027397,2]
[311031997,1704877649360,-500.0,0.00027397,2]
[311031998,1704877649382,-500.0,0.00027397,2]
[311031999,1704877649408,-11903.41,0.00027397,2]
[311032000,1704877649431,-500.0,0.00027397,2]
[311032001,1704877649452,-500.0,0.00027397,2]
[311032002,1704877649473,-500.0,0.00027397,2]
[311032003,1704877649495,-599.45,0.00027397,2]
[311032004,1704877649516,-500.0,0.00027397,2]
[311032005,1704877649537,-500.0,0.00027397,2]
[311032006,1704877649560,-500.0,0.00027397,2]
[311032007,1704877649580,-519.03132997,0.00027397,2]
[311032008,1704877649602,-500.0,0.00027397,2]
[311032009,1704877649622,-500.0,0.00027397,2]
[311032010,1704877649643,-665.0,0.00027397,2]
[311032011,1704877649663,-500.0,0.00027397,2]
[311032012,1704877649683,-500.0,0.00027397,2]
[311032013,1704877649704,-3193.75,0.00027397,2]
[311032014,1704877649724,-500.0,0.00027397,2]
[311032015,1704877649744,-500.0,0.00027397,2]
[311032016,1704877649766,-500.0,0.00027397,2]
[311032017,1704877649786,-500.0,0.00027397,2]
[311032018,1704877649805,-503.49423838,0.00027397,2]
[311032019,1704877649826,-500.0,0.00027397,2]
[311032020,1704877649846,-509.59,0.00027397,2]
[311032021,1704877649870,-1546.5657676,0.00027397,2]
[311032102,1704877832593,-154.86062544,0.00022882,4]
[311032103,1704877832603,-853.57612089,0.00022883,2]
[311032104,1704877832612,-266.19065175,0.00022883,2]
[311032105,1704877832621,-167.43608784,0.00022885,2]
[311032106,1704877832630,-2994.25505405,0.0002564,2]
[311032107,1704877832639,-4711.08145103,0.00025641,2]
[311032108,1704877832648,-2293.16748545,0.00025642,2]
[311032109,1704877832657,-1195.09669838,0.00025642,2]
[311032111,1704877832666,-348.08339068,0.00025642,2]
[311032113,1704877832675,-361.048888,0.00025643,2]
[311032115,1704877832683,-3931.75997852,0.00025668,2]
[311032117,1704877832692,-2093.08732709,0.00025669,2]
[311032119,1704877832701,-154.86062544,0.00025669,2]
[311032121,1704877832711,-614.01289661,0.00025669,2]
[311032123,1704877832720,-25299.48271883,0.00025669,2]
[311032125,1704877832732,-12758.86642116,0.00025669,2]
[311032127,1704877832741,-326.73090334,0.0002567,2]
[311032129,1704877832752,-166.666666,0.00025672,2]
[311032131,1704877832761,-525.91402641,0.00026,2]
[311032133,1704877832771,-166.666666,0.00026372,2]
[311032135,1704877832781,-733.25771754,0.00027,2]
[311032137,1704877832790,-166.666666,0.00027071,2]
[311032139,1704877832799,-4141.32,0.0002729,3]
[311032141,1704877832808,-3451.1,0.0002729,3]
[311032143,1704877832817,-167.43608784,0.00027295,2]
[311032144,1704877832826,-9098.22062588,0.000273,4]
[311032145,1704877832835,-10014.12238485,0.00027394,2]
[311032146,1704877832844,-4918.3606825,0.00027395,2]
[311032147,1704877832853,-314.71739697,0.00027395,2]
[311032148,1704877832862,-1049.3942324,0.00027397,2]
[311032149,1704877832870,-500.0,0.00027397,2]
[311032150,1704877832879,-613.7161458,0.00027397,2]
[311032151,1704877832888,-967.62,0.00027397,2]
[311032152,1704877832897,-501.07799882,0.00027397,2]
[311032153,1704877832906,-500.0,0.00027397,2]
[311032154,1704877832915,-500.0,0.00027397,2]
[311032155,1704877832925,-864.26,0.00027397,2]
[311032156,1704877832934,-500.0,0.00027397,2]
[311032157,1704877832943,-500.0,0.00027397,2]
[311032158,1704877832953,-501.38033797,0.00027397,2]
[311032159,1704877832962,-500.0,0.00027397,2]
[311032160,1704877832972,-720.06,0.00027397,2]
[311032161,1704877832982,-504.60900011,0.00027397,2]
[311032162,1704877832991,-6095.8,0.00027397,2]
[311032163,1704877833001,-500.0,0.00027397,2]
[311032164,1704877833010,-909.983889,0.00027397,2]
[311032165,1704877833023,-2277.45,0.00027397,2]
[311032166,1704877833034,-985.146111,0.00027397,2]
[311032167,1704877833043,-500.0,0.00027397,2]
[311032168,1704877833052,-500.0,0.00027397,2]
[311032169,1704877833061,-522.09370799,0.00027397,2]
[311032170,1704877833071,-502.97512192,0.00027397,2]
[311032171,1704877833080,-500.0,0.00027397,2]
[311032172,1704877833090,-953.98,0.00027397,2]
[311032173,1704877833099,-502.37533265,0.00027397,2]
[311032174,1704877833109,-5809.06,0.00027397,2]
[311032175,1704877833118,-1401.16,0.00027397,2]
[311032176,1704877833127,-500.0,0.00027397,2]
[311032177,1704877833137,-2489.5,0.00027397,2]
[311032178,1704877833146,-500.0,0.00027397,2]
[311032179,1704877833155,-500.0,0.00027397,2]
[311032180,1704877833165,-500.0,0.00027397,2]
[311032181,1704877833174,-540.32080062,0.00027397,2]
[311032182,1704877833183,-500.0,0.00027397,2]
[311032184,1704877833193,-3906.52,0.00027397,2]
[311032185,1704877833203,-3313.2630203,0.00027397,2]
[311032186,1704877833212,-317.2237177,0.00027397,2]
[311032187,1704877833222,-200.0,0.00027397,2]
[311032188,1704877833231,-1821.85168105,0.00027397,2]
[311032189,1704877833241,-300.0,0.00027397,2]
[311032190,1704877833251,-763.40324942,0.00027397,2]
[311032191,1704877833261,-500.0,0.00027397,2]
[311032192,1704877833271,-2079.63666476,0.00027397,2]
[311032193,1704877833281,-500.0,0.00027397,2]
[311032194,1704877833290,-1308.88,0.00027397,2]
[311032195,1704877833300,-500.0,0.00027397,5]
[311032196,1704877833309,-155.0,0.00027397,2]
[311032197,1704877833319,-500.0,0.00027397,2]
[311032198,1704877833328,-500.0,0.00027397,2]
[311032199,1704877833338,-12107.63,0.00027397,2]
[311032200,1704877833347,-24424.45086743,0.00027397,2]
[311032243,1704877838856,-156.86767994,0.00022881,2]
[311032245,1704877838866,-326.73090334,0.00022881,2]
[311032247,1704877838875,-3000.0,0.00025,2]
[311032249,1704877838884,-6000.35913257,0.00027397,2]
[311032251,1704877838894,-1356.92,0.00027397,2]
[311032253,1704877838903,-500.0,0.00027397,2]
[311032255,1704877838913,-1728.31,0.00027397,2]
[311032257,1704877838922,-500.0,0.00027397,2]
[311032259,1704877838932,-1939.23,0.00027397,2]
[311032261,1704877838942,-500.0,0.00027397,2]
[311032263,1704877838951,-574.48,0.00027397,2]
[311032265,1704877838960,-500.0,0.00027397,2]
[311032267,1704877838970,-500.0,0.00027397,2]
[311032270,1704877838979,-500.0,0.00027397,2]
[311032272,1704877838988,-409.05798696,0.00027397,2]
[311032274,1704877838998,-500.0,0.00027397,2]
[311032276,1704877839007,-500.0,0.00027397,2]
[311032278,1704877839016,-500.0,0.00027397,2]
[311032279,1704877839026,-500.0,0.00027397,2]
[311032281,1704877839035,-500.0,0.00027397,2]
[311032283,1704877839045,-637.29,0.00027397,2]
[311032285,1704877839054,-500.0,0.00027397,2]
[311032287,1704877839063,-1513.11,0.00027397,2]
[311032290,1704877839074,-3248.54,0.00027397,2]
[311032292,1704877839083,-500.0,0.00027397,2]
[311032294,1704877839093,-1276.84,0.00027397,2]
[311032296,1704877839102,-1099.36,0.00027397,2]
[311032298,1704877839112,-500.0,0.00027397,2]
[311032300,1704877839121,-984.22,0.00027397,2]
[311032302,1704877839131,-2744.91,0.00027397,2]
[311032304,1704877839140,-10925.80785836,0.000275,2]
[311032308,1704877839168,-7389.46647098,0.000275,2]
[311032310,1704877839180,-14773.11201986,0.000275,2]
[311032312,1704877839189,-500.0,0.00027534,2]
[311032314,1704877839199,-500.0,0.0002767,2]
[311032316,1704877839209,-152.0308602,0.0002767,2]
[311032318,1704877839218,-156.69579143,0.0002767,2]
[311032320,1704877839228,-500.0,0.00027671,2]
[311032322,1704877839238,-500.0,0.00027671,2]
[311032324,1704877839247,-500.0,0.00027671,2]
[311032326,1704877839258,-500.0,0.00027671,2]
[311032328,1704877839267,-500.0,0.00027671,2]
[311032330,1704877839277,-541.85,0.00027671,2]
[311032332,1704877839287,-555.15143661,0.00027671,2]
[311032334,1704877839296,-500.0,0.00027671,2]
[311032336,1704877839306,-500.0,0.00027671,2]
[311032338,1704877839316,-500.0,0.00027671,2]
[311032340,1704877839325,-500.0,0.00027671,2]
[311032342,1704877839335,-1017.09,0.00027671,2]
[311032344,1704877839344,-500.0,0.00027671,2]
[311032346,1704877839353,-500.0,0.00027671,2]
[311032348,1704877839362,-500.0,0.00027671,2]
[311032350,1704877839372,-500.0,0.00027671,2]
[311032352,1704877839381,-500.0,0.00027671,2]
[311032354,1704877839390,-500.0,0.00027671,2]
[311032356,1704877839399,-500.0,0.00027671,2]
[311032358,1704877839409,-500.0,0.00027671,2]
[311032360,1704877839418,-500.0,0.00027671,2]
[311032362,1704877839427,-1483.41,0.00027671,2]
[311032364,1704877839437,-500.0,0.00027671,2]
[311032366,1704877839447,-1204.77,0.00027671,2]
[311032368,1704877839458,-500.0,0.00027671,2]
[311032370,1704877839467,-500.0,0.00027671,2]
[311032372,1704877839477,-500.0,0.00027671,2]
[311032374,1704877839486,-500.0,0.00027671,2]
[311032376,1704877839495,-1224.62,0.00027671,2]
[311032378,1704877839504,-500.0,0.00027671,2]
[311032380,1704877839513,-500.0,0.00027671,2]
[311032382,1704877839522,-500.0,0.00027671,2]
[311032384,1704877839531,-500.0,0.00027671,2]
[311032386,1704877839540,-500.0,0.00027671,2]
[311032388,1704877839549,-500.0,0.00027671,2]
[311032390,1704877839559,-500.0,0.00027671,2]
[311032392,1704877839568,-600.14,0.00027671,2]
[311032394,1704877839577,-500.0,0.00027671,2]
[311032396,1704877839586,-1012.87,0.00027671,2]
[311032398,1704877839595,-500.0,0.00027671,2]
[311032400,1704877839604,-500.0,0.00027671,2]
[311032402,1704877839613,-568.3886669,0.00027671,2]
[311032403,1704877839623,-500.0,0.00027671,2]
[311032405,1704877839632,-500.0,0.00027671,2]
[311032406,1704877839641,-500.0,0.00027671,2]
[311032408,1704877839650,-1043.7,0.00027671,2]
[311032409,1704877839659,-501.18917969,0.00027671,2]
[311032410,1704877839668,-500.0,0.00027671,2]
[311032411,1704877839678,-500.0,0.00027671,2]
[311032412,1704877839687,-500.0,0.00027671,2]
[311032413,1704877839696,-500.0,0.00027671,2]
[311032414,1704877839705,-500.0,0.00027671,2]
[311032415,1704877839714,-509.59,0.00027671,2]
[311032416,1704877839724,-2595.96,0.00027671,2]
[311032417,1704877839733,-500.0,0.00027671,2]
[311032418,1704877839742,-500.0,0.00027671,2]
[311032419,1704877839752,-500.0,0.00027671,2]
[311032420,1704877839762,-864.26,0.00027671,2]
[311032421,1704877839771,-500.0,0.00027671,2]
[311032422,1704877839781,-500.0,0.00027671,2]
[311032423,1704877839790,-500.0,0.00027671,2]
[311032424,1704877839799,-720.06,0.00027671,2]
[311032425,1704877839809,-6095.8,0.00027671,2]
[311032426,1704877839818,-500.0,0.00027671,2]
[311032427,1704877839827,-4172.58,0.00027671,2]
[311032428,1704877839837,-500.0,0.00027671,2]
[311032429,1704877839846,-500.0,0.00027671,2]
[311032430,1704877839855,-500.0,0.00027671,2]
[311032431,1704877839865,-953.98,0.00027671,2]
[311032432,1704877840022,-5809.06,0.00027671,2]
[311032433,1704877840032,-1401.16,0.00027671,2]
[311032434,1704877840042,-500.0,0.00027671,2]
[311032435,1704877840051,-2489.5,0.00027671,2]
[311032436,1704877840061,-489.86771307,0.00027671,2]
[311032437,1704877840071,-500.0,0.00027671,2]
[311032438,1704877840081,-500.0,0.00027671,2]
[311032439,1704877840090,-500.0,0.00027671,2]
[311032440,1704877840099,-3906.52,0.00027671,2]
[311032441,1704877840109,-500.0,0.00027671,2]
[311032442,1704877840118,-500.0,0.00027671,2]
[311032443,1704877840128,-1308.88,0.00027671,2]
[311032444,1704877840137,-500.0,0.00027671,5]
[311032445,1704877840146,-500.0,0.00027671,2]
[311032446,1704877840155,-12107.63,0.00027671,2]
[311032447,1704877840164,-30424.81,0.00027671,2]
[311032448,1704877840174,-1356.92,0.00027671,2]
[311032449,1704877840183,-500.0,0.00027671,2]
[311032450,1704877840192,-1728.31,0.00027671,2]
[311032451,1704877840202,-1939.23,0.00027671,2]
[311032452,1704877840212,-500.0,0.00027671,2]
[311032453,1704877840221,-574.48,0.00027671,2]
[311032454,1704877840231,-500.0,0.00027671,2]
[311032455,1704877840240,-500.0,0.00027671,2]
[311032456,1704877840249,-500.0,0.00027671,2]
[311032457,1704877840259,-209.37161532,0.00027671,2]
[311032458,1704877840269,-500.0,0.00027671,2]
[311032459,1704877840278,-500.0,0.00027671,2]
[311032460,1704877840288,-500.0,0.00027671,2]
[311032461,1704877840298,-500.0,0.00027671,2]
[311032462,1704877840307,-637.29,0.00027671,2]
[311032463,1704877840317,-500.0,0.00027671,2]
[311032464,1704877840327,-1513.11,0.00027671,2]
[311032465,1704877840337,-3248.54,0.00027671,2]
[311032466,1704877840346,-500.0,0.00027671,2]
[311032467,1704877840355,-1276.84,0.00027671,2]
[311032468,1704877840365,-1099.36,0.00027671,2]
[311032469,1704877840374,-500.0,0.00027671,2]
[311032470,1704877840383,-984.22,0.00027671,2]
[311032471,1704877840392,-2744.91,0.00027671,2]
[311032472,1704877840401,-166.666666,0.00027771,2]
[311032473,1704877840410,-500.0,0.00027808,2]
[311032474,1704877840418,-29467.95358637,0.00027845,2]
[311032475,1704877840427,-224.73053134,0.00027918,2]
[311032476,1704877840436,-500.0,0.00027945,2]
[311032477,1704877840445,-500.0,0.00027945,2]
[311032478,1704877840455,-500.0,0.00027945,2]
[311032479,1704877840465,-500.0,0.00027945,2]
[311032480,1704877840476,-541.85,0.00027945,2]
[311032481,1704877840486,-500.0,0.00027945,2]
[311032482,1704877840495,-500.0,0.00027945,2]
[311032483,1704877840504,-500.0,0.00027945,2]
[311032484,1704877840513,-500.0,0.00027945,2]
[311032485,1704877840522,-1017.09,0.00027945,2]
[311032487,1704877840531,-500.0,0.00027945,2]
[311032489,1704877840540,-500.0,0.00027945,2]
[311032491,1704877840549,-500.0,0.00027945,2]
[311032493,1704877840558,-500.0,0.00027945,2]
[311032495,1704877840567,-500.0,0.00027945,2]
[311032497,1704877840576,-500.0,0.00027945,2]
[311032499,1704877840585,-500.0,0.00027945,2]
[311032502,1704877840595,-1483.41,0.00027945,2]
[311032505,1704877840604,-500.0,0.00027945,2]
[311032507,1704877840613,-1204.77,0.00027945,2]
[311032509,1704877840622,-500.0,0.00027945,2]
[311032510,1704877840631,-500.0,0.00027945,2]
[311032512,1704877840640,-500.0,0.00027945,2]
[311032513,1704877840649,-500.0,0.00027945,2]
[311032515,1704877840659,-1224.62,0.00027945,2]
[311032517,1704877840668,-500.0,0.00027945,2]
[311032518,1704877840677,-500.0,0.00027945,2]
[311032519,1704877840687,-500.0,0.00027945,2]
[311032520,1704877840696,-500.0,0.00027945,2]
[311032521,1704877840705,-500.0,0.00027945,2]
[311032522,1704877840715,-645.03284407,0.00027945,2]
[311032523,1704877840724,-500.0,0.00027945,2]
[311032524,1704877840733,-600.14,0.00027945,2]
[311032525,1704877840743,-500.0,0.00027945,2]
[311032526,1704877840752,-1012.87,0.00027945,2]
[311032527,1704877840763,-500.0,0.00027945,2]
[311032528,1704877840772,-500.0,0.00027945,2]
[311032529,1704877840781,-500.0,0.00027945,2]
[311032530,1704877840790,-500.0,0.00027945,2]
[311032531,1704877840800,-500.0,0.00027945,2]
[311032532,1704877840809,-1043.7,0.00027945,2]
[311032533,1704877840818,-500.0,0.00027945,2]
[311032534,1704877840827,-476.30218637,0.00027945,2]